[Event "44th Chess Olympiad Open 2022"]
[Site "Chennai"]
[Date "2022.08.03"]
[Round "6.66"]
[White "Al Maashani, Amer"]
[Black "Willem Blijstra"]
[Result "1-0"]
[WhiteElo "1947"]
[BlackElo "2198"]
[Annotator "NA RC"]
[PlyCount "53"]
[EventDate "2022.??.??"]
[TimeControl "60"]

1. e4 {[%emt 0:00:02]} c5 {[%emt 0:00:28]} 2. Nf3 {[%emt 0:00:08]} d6 {[%emt 0:
00:00]} 3. d4 {[%emt 0:00:08]} cxd4 {[%emt 0:00:04]} 4. Nxd4 {[%emt 0:00:07]}
Nf6 {[%emt 0:00:10]} 5. Nc3 {[%emt 0:00:08]} a6 {[%emt 0:00:27]} 6. Be3 {
[%emt 0:00:47]} e6 {[%emt 0:02:40]} 7. g4 {[%emt 0:03:13]} e5 {[%emt 0:13:25]}
8. Nf5 {[%emt 0:01:21]} g6 {[%emt 0:08:54]} 9. g5 {[%emt 0:05:52]} gxf5 {
[%emt 0:00:00]} 10. exf5 {[%emt 0:03:27]} Bxf5 {[%emt 0:05:18]} 11. gxf6 {
[%emt 0:04:41]} Nd7 {[%emt 0:02:54]} 12. Qf3 {[%emt 0:10:06]} Be6 {[%emt 0:00:
00]} 13. O-O-O {[%emt 0:00:47]} Qc7 {[%emt 0:11:31]} 14. Bh3 {[%emt 0:07:04]}
O-O-O {[%emt 0:00:00]} 15. Nd5 {[%emt 0:04:39]} Qc6 {[%emt 0:16:16]} 16. Bxe6 {
[%emt 0:15:02]} fxe6 {[%emt 0:00:00]} 17. Ne7+ {[%emt 0:00:05]} Bxe7 {[%emt 0:
00:00]} 18. Qxc6+ {[%emt 0:00:02]} bxc6 {[%emt 0:00:00]} 19. fxe7 {[%emt 0:00:
00]} Rde8 {[%emt 0:00:00]} 20. Rxd6 {[%emt 0:00:09]} Rxe7 {[%emt 0:00:00]} 21.
Rxc6+ {[%emt 0:00:10]} Kb7 {[%emt 0:00:00]} 22. Rd6 {[%emt 0:01:07]} Ra8 {
[%emt 0:00:00]} 23. Rhd1 {[%emt 0:02:13]} Nf8 {[%emt 0:00:00]} 24. Rb6+ {
[%emt 0:02:19]} Kc7 {[%emt 0:00:00]} 25. Rdd6 {[%emt 0:00:26]} a5 {[%emt 0:00:
00]} 26. Rdc6+ {[%emt 0:02:15]} Kd8 {[%emt 0:00:00]} 27. Bg5 {[%emt 0:00:16]}
1-0

[Event "44th Chess Olympiad Open 2022"]
[Site "Chennai"]
[Date "2022.08.03"]
[Round "6.66"]
[White "Al Busaidi, Hamood"]
[Black "Rurik Capella"]
[Result "0-1"]
[WhiteElo "1743"]
[BlackElo "1952"]
[Annotator "NA RC"]
[PlyCount "104"]
[EventDate "2022.??.??"]
[TimeControl "60"]

1. e4 {[%emt 0:00:03]} g6 {[%emt 0:00:09]} 2. d4 {[%emt 0:00:17]} Bg7 {[%emt 0:
00:00]} 3. Nf3 {[%emt 0:00:20]} d6 {[%emt 0:00:06]} 4. Bc4 {[%emt 0:00:03]} Nc6
{[%emt 0:00:35]} 5. h3 {[%emt 0:01:12]} e5 {[%emt 0:01:20]} 6. c3 {[%emt 0:00:
00]} Nge7 {[%emt 0:01:53]} 7. a4 {[%emt 0:02:47]} O-O {[%emt 0:01:41]} 8. a5 {
[%emt 0:00:33]} a6 {[%emt 0:01:54]} 9. Be3 {[%emt 0:01:13]} exd4 {[%emt 0:00:
00]} 10. cxd4 {[%emt 0:01:45]} d5 {[%emt 0:00:29]} 11. exd5 {[%emt 0:00:24]}
Nxd5 {[%emt 0:00:09]} 12. O-O {[%emt 0:00:22]} Nxe3 {[%emt 0:05:29]} 13. fxe3 {
[%emt 0:00:02]} Qe7 {[%emt 0:00:51]} 14. Re1 {[%emt 0:02:36]} Bf5 {[%emt 0:00:
00]} 15. Nc3 {[%emt 0:15:03]} Rad8 {[%emt 0:02:16]} 16. Qb3 {[%emt 0:10:21]}
Bc8 {[%emt 0:00:38]} 17. Bd5 {[%emt 0:15:09]} Nb4 {[%emt 0:13:27]} 18. Bc4 {
[%emt 0:06:40]} Nc6 {[%emt 0:02:01]} 19. Bd5 {[%emt 0:06:44]} Nb4 {[%emt 0:00:
00]} 20. Bc4 {[%emt 0:00:15]} Nc6 {[%emt 0:00:27]} 21. Bd5 {[%emt 0:01:51]} h6
{[%emt 0:03:55]} 22. Bxc6 {[%emt 0:01:00]} bxc6 {[%emt 0:01:54]} 23. Qc4 {
[%emt 0:02:02]} Qd6 {[%emt 0:03:16]} 24. Ne4 {[%emt 0:03:04]} Qe7 {[%emt 0:00:
00]} 25. Nc5 {[%emt 0:01:16]} Rd5 {[%emt 0:02:24]} 26. Nxa6 {[%emt 0:04:11]}
Qd6 {[%emt 0:01:00]} 27. Nc5 {[%emt 0:01:08]} Bxh3 {[%emt 0:00:21]} 28. Kf2 {
[%emt 0:05:19]} Bg4 {[%emt 0:02:46]} 29. Ne4 {[%emt 0:04:28]} Qe7 {[%emt 0:00:
00]} 30. Ned2 {[%emt 0:01:05]} Rf5 {[%emt 0:02:32]} 31. Qxc6 {[%emt 0:07:58]}
Rb8 {[%emt 0:04:55]} 32. Ra2 {[%emt 0:02:01]} Qh4+ {[%emt 0:00:57]} 33. Ke2 {
[%emt 0:01:08]} Qg3 {[%emt 0:00:22]} 34. Rg1 {[%emt 0:01:51]} Qh2 {[%emt 0:00:
00]} 35. Qc1 {[%emt 0:00:53]} Re8 {[%emt 0:03:06]} 36. Ra4 {[%emt 0:00:32]} Qf4
{[%emt 0:00:24]} 37. Qc3 {[%emt 0:00:49]} c5 {[%emt 0:00:35]} 38. e4 {[%emt 0:
00:00]} Bxd4 {[%emt 0:00:16]} 39. Rxd4 {[%emt 0:00:21]} cxd4 {[%emt 0:00:17]}
40. Qa3 {[%emt 0:00:43]} Rxe4+ {[%emt 0:04:53]} 41. Nxe4 {[%emt 0:30:32]} Qxe4+
{[%emt 0:30:08]} 42. Kf2 {[%emt 0:00:33]} Bxf3 {[%emt 0:01:16]} 43. gxf3 {
[%emt 0:00:00]} Qc2+ {[%emt 0:00:00]} 44. Kf1 {[%emt 0:00:00]} Qd1+ {[%emt 0:
00:00]} 45. Kf2 {[%emt 0:00:00]} Qd2+ {[%emt 0:00:00]} 46. Kf1 {[%emt 0:00:00]}
d3 {[%emt 0:00:00]} 47. Rg3 {[%emt 0:00:00]} Qe2+ {[%emt 0:00:00]} 48. Kg1 {
[%emt 0:00:00]} d2 {[%emt 0:00:00]} 49. Rxg6+ {[%emt 0:00:00]} fxg6 {[%emt 0:
00:00]} 50. Qb3+ {[%emt 0:00:00]} Rf7 {[%emt 0:00:00]} 51. Qb8+ {[%emt 0:00:00]
} Kg7 {[%emt 0:00:00]} 52. Qe5+ {[%emt 0:00:00]} Qxe5 {[%emt 0:00:00]} 0-1

[Event "44th Chess Olympiad Open 2022"]
[Site "Chennai"]
[Date "2022.08.03"]
[Round "6.67"]
[White "Miswadah, Baha"]
[Black "Pace, Colin"]
[Result "0-1"]
[WhiteElo "1985"]
[BlackElo "2159"]
[Annotator "TA"]
[PlyCount "84"]
[EventDate "2022.??.??"]
[TimeControl "60"]

{[%evp 9,83,19,22,16,28,18,19,0,25,16,45,24,39,25,78,74,75,75,79,68,81,70,81,
73,75,65,76,0,0,5,75,74,100,88,97,93,58,61,160,158,157,79,106,87,89,96,100,92,
193,143,230,157,316,43,44,-352,-374,-516,-482,-850,-858,-832,-808,-797,-622,
-613,-613,-3122,-2918,-29991,-29992,-29992,-29993,-29995,-29996,-29999]} 1. d4
{[%emt 0:00:47]} f5 {[%emt 0:00:08]} 2. Bg5 {[%emt 0:00:53]} h6 {[%emt 0:01:13]
} 3. Bh4 {[%emt 0:00:30]} g5 {[%emt 0:00:08]} 4. e4 {[%emt 0:00:38]} Nf6 {
[%emt 0:00:58]} 5. e5 {[%emt 0:00:36]} e6 $1 {[%emt 0:00:18]} 6. Bg3 {[%emt 0:
00:00] A80: Dutch Defence: Unusual White second moves.} f4 $1 {[%emt 0:02:17]}
7. exf6 {[%emt 0:02:38]} Qxf6 {[%emt 0:03:49]} 8. Bd3 {[%emt 0:04:53][%cal
Yc2c3] The position is equal.} fxg3 {[%emt 0:04:15] [#]} 9. fxg3 $146 {[%emt 0:
00:00]} ({Predecessor:} 9. hxg3 Nc6 10. c3 d5 11. Qh5+ Kd8 12. Nf3 Bg7 13. Nbd2
Bd7 14. O-O-O Ke7 15. Rhe1 {1-0 (57) Arkadan,A (1820)-Tarun,K (2275) Chess.com
INT 2021}) 9... Bg7 {[%emt 0:01:29]} (9... Bb4+ 10. c3 $16) 10. Nf3 {[%emt 0:
00:00]} Nc6 {[%emt 0:05:05]} 11. c3 {[%emt 0:02:17]} Rf8 {[%emt 0:19:27]} (
11... g4 $11 12. Nh4 O-O) 12. O-O {[%emt 0:07:23][%cal Yf3e5] Ne5! is the
strong threat.} Qe7 {[%emt 0:00:51]} 13. Na3 {[%emt 0:06:07]} d5 {[%emt 0:00:
00]} 14. Qe2 {[%emt 0:04:34]} Bd7 {[%emt 0:00:49]} 15. Bg6+ {[%emt 0:00:35]
[%cal Yd3g6,Yg6h5,Yh5g4,Yg4f5]} Kd8 {[%emt 0:00:09]} 16. Rae1 {[%emt 0:09:04]}
a6 {[%emt 0:07:01]} 17. Nc2 {[%emt 0:02:25]} Qd6 {[%emt 0:00:00]} 18. b4 {
[%emt 0:05:45]} ({White should try} 18. Bh5 $16) 18... e5 $11 {[%emt 0:06:18]}
19. Bh5 {[%emt 0:12:45][%cal Rd4e5]} e4 {[%emt 0:01:11]} (19... exd4 $1 $11 20.
Nfxd4 Rxf1+ 21. Rxf1 Nxd4 22. Nxd4 Bxd4+ 23. cxd4 Bb5) 20. Nd2 $16 {[%emt 0:02:
47]} Rxf1+ {[%emt 0:06:53]} 21. Rxf1 {[%emt 0:00:38] Threatens to win with Rf7.
} Be6 {[%emt 0:00:56] Inhibits Rf7.} 22. Nb3 {[%emt 0:00:44] Hoping for Nc5.}
b6 {[%emt 0:00:27] Inhibits Nc5.} 23. Ne3 {[%emt 0:01:24]} Kd7 {[%emt 0:09:24]}
(23... Ne7 $14) 24. Bg4 {[%emt 0:01:59] And now Rf7+ would win.} Rf8 {[%emt 0:
01:50] Inhibits Rf7+.} 25. Nf5 {[%emt 0:01:19]} ({Don't play} 25. Qxa6 $6 Bxg4
26. Rxf8 (26. Nxg4 h5 $16) 26... Bxf8 $14) (25. Rxf8 $142 Bxf8 26. b5 (26. Qxa6
Bxg4 27. Nxg4 h5 $16) 26... axb5 27. Bxe6+ Kxe6 28. Qf1 (28. Qxb5 Bg7 $14))
25... Bxf5 {[%emt 0:00:45]} 26. Bxf5+ {[%emt 0:01:02]} ({But not} 26. Rxf5 Rxf5
27. Bxf5+ Ke7) 26... Ke7 {[%emt 0:01:07]} 27. Qxa6 {[%emt 0:01:34]} h5 {
[%emt 0:00:54] [#]} 28. g4 $1 {[%emt 0:03:50]} Rh8 {[%emt 0:02:37]} (28... hxg4
$16 29. Bxg4 Nb8) 29. h3 {[%emt 0:04:26]} ({Better is} 29. gxh5 $18 Rxh5 30. g3
) 29... Qg3 {[%emt 0:01:34] Inhibits Bg4.} (29... Nb8 $16 30. Qb7 hxg4 31. Bxg4
Nd7) 30. Qb7 {[%emt 0:01:56]} Kd6 {[%emt 0:00:00] [#]} (30... Qd6 $16 31. gxh5
Rxh5) 31. b5 $2 {[%emt 0:02:12]} (31. c4 $1 $18 {[%cal Rc4c5] Strongly
threatening c5+.} Bxd4+ 32. Nxd4 Qe3+ 33. Kh1 Qxd4 34. c5+ bxc5 35. b5) 31...
Ne7 $14 {[%emt 0:00:23]} 32. Nc5 $2 {[%emt 0:07:57]} Qxc3 $19 {[%emt 0:03:56]
Really sharp!} (32... bxc5 33. b6 Qe3+ 34. Kh1 Nxf5 35. Qxc7+ Ke6 36. gxf5+ Kf6
37. Qe5+ Kf7 38. Qe6+ Kf8 39. f6) 33. Ne6 {[%emt 0:01:48]} Bxd4+ {[%emt 0:00:
06]} 34. Nxd4 {[%emt 0:01:00]} (34. Kh1 $142 Bf6 35. Nxc7 Qxc7 36. Qxc7+ Kxc7
37. Bxe4 hxg4 38. Bd3) 34... Qxd4+ {[%emt 0:00:01]} 35. Kh1 {[%emt 0:00:04]}
Qc4 {[%emt 0:01:38]} 36. Rd1 {[%emt 0:00:00]} Nxf5 {[%emt 0:01:26]} 37. gxf5 {
[%emt 0:00:21] Endgame KQR-KQR} Rf8 {[%emt 0:01:00]} 38. g4 {[%emt 0:00:41]}
hxg4 {[%emt 0:00:08]} 39. hxg4 {[%emt 0:00:03]} Rh8+ {[%emt 0:01:49] Black
mates.} 40. Kg1 {[%emt 0:00:00]} Qc5+ {[%emt 0:00:17]} 41. Kg2 {[%emt 0:04:38]}
Qc2+ {[%emt 0:00:23]} 42. Kg3 {[%emt 0:00:16]} Qh2# {[%emt 0:00:08] What a bad
dream for White. Weighted Error Value: White=0.86/Black=0.26 (precise)} 0-1

[Event "44th Chess Olympiad Open 2022"]
[Site "Chennai"]
[Date "2022.08.03"]
[Round "6.67"]
[White "Vella, Duncan"]
[Black "Isam, Gaith"]
[Result "1-0"]
[WhiteElo "1985"]
[BlackElo "1828"]
[Annotator "NA RC"]
[PlyCount "112"]
[EventDate "2022.??.??"]
[TimeControl "60"]

1. e4 {[%emt 0:00:05]} e5 {[%emt 0:00:05]} 2. Nf3 {[%emt 0:00:10]} Nc6 {
[%emt 0:00:07]} 3. d4 {[%emt 0:00:14]} exd4 {[%emt 0:00:15]} 4. Nxd4 {[%emt 0:
00:00]} Nf6 {[%emt 0:00:39]} 5. Nxc6 {[%emt 0:00:18]} bxc6 {[%emt 0:00:13]} 6.
e5 {[%emt 0:00:22]} Qe7 {[%emt 0:00:43]} 7. Qe2 {[%emt 0:00:14]} Nd5 {[%emt 0:
00:00]} 8. h4 {[%emt 0:00:19]} f6 {[%emt 0:11:12]} 9. exf6 {[%emt 0:05:50]}
Nxf6 {[%emt 0:00:21]} 10. Bg5 {[%emt 0:03:02]} Qxe2+ {[%emt 0:00:34]} 11. Bxe2
{[%emt 0:00:10]} Be7 {[%emt 0:02:18]} 12. Nc3 {[%emt 0:06:01]} Bb7 {[%emt 0:00:
00]} 13. O-O-O {[%emt 0:05:25]} Nd5 {[%emt 0:20:11]} 14. Nxd5 {[%emt 0:08:23]}
Bxg5+ {[%emt 0:03:14]} 15. hxg5 {[%emt 0:00:15]} cxd5 {[%emt 0:00:09]} 16. Bd3
{[%emt 0:07:22]} Ke7 {[%emt 0:01:40]} 17. Rxh7 {[%emt 0:05:37]} Rxh7 {[%emt 0:
00:00]} 18. Bxh7 {[%emt 0:00:02]} Rf8 {[%emt 0:00:40]} 19. f3 {[%emt 0:01:25]}
c5 {[%emt 0:03:24]} 20. c3 {[%emt 0:01:41]} a5 {[%emt 0:01:28]} 21. Kd2 {
[%emt 0:11:16]} Rh8 {[%emt 0:07:47]} 22. Bf5 {[%emt 0:01:33]} Kd6 {[%emt 0:00:
00]} 23. Re1 {[%emt 0:09:30]} Bc6 {[%emt 0:01:47]} 24. Bg4 {[%emt 0:03:44]} Rb8
{[%emt 0:00:57]} 25. Kc2 {[%emt 0:01:55]} Ba4+ {[%emt 0:01:59]} 26. b3 {
[%emt 0:00:25]} Bc6 {[%emt 0:00:03]} 27. f4 {[%emt 0:02:52]} g6 {[%emt 0:08:24]
} 28. Rh1 {[%emt 0:03:15]} d4 {[%emt 0:09:07]} 29. Bf3 {[%emt 0:04:50]} Bxf3 {
[%emt 0:01:04]} 30. gxf3 {[%emt 0:00:02]} Ke6 {[%emt 0:05:57]} 31. cxd4 {
[%emt 0:03:39]} cxd4 {[%emt 0:00:07]} 32. Rh7 {[%emt 0:04:40]} Rc8+ {[%emt 0:
00:00]} 33. Kd3 {[%emt 0:01:30]} Rc3+ {[%emt 0:03:53]} 34. Kxd4 {[%emt 0:00:06]
} Rxf3 {[%emt 0:00:11]} 35. Ke4 {[%emt 0:00:29]} Rf2 {[%emt 0:01:51]} 36. Rg7 {
[%emt 0:00:44]} d5+ {[%emt 0:00:38]} 37. Ke3 {[%emt 0:00:41]} Rxa2 {[%emt 0:00:
00]} 38. Rxg6+ {[%emt 0:00:07]} Ke7 {[%emt 0:00:27]} 39. f5 {[%emt 0:01:47]}
Ra3 {[%emt 0:00:22]} 40. Re6+ {[%emt 0:01:56]} Kf8 {[%emt 0:00:47]} 41. Kd4 {
[%emt 0:32:17]} Rxb3 {[%emt 0:30:23]} 42. Kxd5 {[%emt 0:01:10]} a4 {[%emt 0:00:
00]} 43. Ra6 {[%emt 0:00:00]} a3 {[%emt 0:00:00]} 44. Ke6 {[%emt 0:00:00]} a2 {
[%emt 0:00:00]} 45. Rxa2 {[%emt 0:00:00]} Rb6+ {[%emt 0:00:00]} 46. Ke5 {
[%emt 0:00:00]} Rb5+ {[%emt 0:00:00]} 47. Kf4 {[%emt 0:00:00]} Rb4+ {[%emt 0:
00:00]} 48. Kf3 {[%emt 0:00:00]} Ke7 {[%emt 0:00:00]} 49. Ra7+ {[%emt 0:00:00]}
Kd6 {[%emt 0:00:00]} 50. f6 {[%emt 0:00:00]} Ke6 {[%emt 0:00:00]} 51. Re7+ {
[%emt 0:00:00]} Kd6 {[%emt 0:00:00]} 52. g6 {[%emt 0:00:00]} Rb1 {[%emt 0:00:
00]} 53. Re2 {[%emt 0:00:00]} Rf1+ {[%emt 0:00:00]} 54. Rf2 {[%emt 0:00:00]}
Rg1 {[%emt 0:00:00]} 55. g7 {[%emt 0:00:00]} Rg6 {[%emt 0:00:00]} 56. f7 {
[%emt 0:00:00]} Kd5 {[%emt 0:00:20]} 1-0

[Event "44th Chess Olympiad Open 2022"]
[Site "Chennai"]
[Date "2022.08.03"]
[Round "6.67"]
[White "seder mohamad"]
[Black "Mizzi, Jack"]
[Result "1-0"]
[WhiteElo "1950"]
[BlackElo "1913"]
[Annotator "NA RC"]
[PlyCount "120"]
[EventDate "2022.??.??"]
[TimeControl "60"]

1. e4 {[%emt 0:00:30]} c6 {[%emt 0:00:10]} 2. Nf3 {[%emt 0:00:00]} d5 {[%emt 0:
00:00]} 3. Nc3 {[%emt 0:00:02]} dxe4 {[%emt 0:00:29]} 4. Nxe4 {[%emt 0:00:09]}
Nf6 {[%emt 0:02:31]} 5. Nxf6+ {[%emt 0:00:10]} exf6 {[%emt 0:00:30]} 6. d4 {
[%emt 0:00:15]} Bd6 {[%emt 0:01:10]} 7. Be2 {[%emt 0:00:27]} O-O {[%emt 0:00:
00]} 8. O-O {[%emt 0:00:36]} Bg4 {[%emt 0:01:02]} 9. h3 {[%emt 0:00:27]} Bh5 {
[%emt 0:00:34]} 10. Be3 {[%emt 0:00:20]} Nd7 {[%emt 0:01:11]} 11. c4 {[%emt 0:
00:00]} Re8 {[%emt 0:08:56]} 12. Re1 {[%emt 0:03:41]} Qc7 {[%emt 0:03:39]} 13.
Qd2 {[%emt 0:04:27]} c5 {[%emt 0:02:43]} 14. Rad1 {[%emt 0:07:36]} Rad8 {
[%emt 0:01:04]} 15. Nh4 {[%emt 0:13:36]} Bh2+ {[%emt 0:21:01]} 16. Kh1 {
[%emt 0:07:26]} cxd4 {[%emt 0:06:21]} 17. Bxd4 {[%emt 0:04:32]} Bf4 {[%emt 0:
00:00]} 18. Qc2 {[%emt 0:02:44]} Bxe2 {[%emt 0:03:20]} 19. Rxe2 {[%emt 0:00:09]
} Ne5 {[%emt 0:08:19]} 20. b3 {[%emt 0:09:45]} Nc6 {[%emt 0:05:13]} 21. Rxe8+ {
[%emt 0:14:44]} Rxe8 {[%emt 0:00:06]} 22. Nf3 {[%emt 0:00:35]} Rd8 {[%emt 0:00:
00]} 23. Bc3 {[%emt 0:06:59]} Rxd1+ {[%emt 0:06:07]} 24. Qxd1 {[%emt 0:00:02]}
Qd6 {[%emt 0:01:15]} 25. Qxd6 {[%emt 0:04:15]} Bxd6 {[%emt 0:00:05]} 26. g4 {
[%emt 0:06:12]} Kf8 {[%emt 0:02:16]} 27. Kg2 {[%emt 0:02:16]} Bc5 {[%emt 0:00:
00]} 28. Nd2 {[%emt 0:02:28]} Bb4 {[%emt 0:03:21]} 29. Ne4 {[%emt 0:00:48]}
Bxc3 {[%emt 0:00:44]} 30. Nxc3 {[%emt 0:00:01]} Ke7 {[%emt 0:00:53]} 31. Kf3 {
[%emt 0:02:29]} Kd6 {[%emt 0:01:25]} 32. Ke4 {[%emt 0:00:33]} a5 {[%emt 0:00:
00]} 33. f4 {[%emt 0:01:20]} Ne7 {[%emt 0:02:13]} 34. a3 {[%emt 0:01:30]} Nc6 {
[%emt 0:00:34]} 35. Ne2 {[%emt 0:02:08]} Kc5 {[%emt 0:00:30]} 36. Nc1 {[%emt 0:
00:00]} Kd6 {[%emt 0:00:39]} 37. Nd3 {[%emt 0:00:20]} b6 {[%emt 0:00:16]} 38.
b4 {[%emt 0:01:08]} axb4 {[%emt 0:00:54]} 39. axb4 {[%emt 0:00:15]} Ke6 {
[%emt 0:01:36]} 40. b5 {[%emt 0:02:41]} Na5 {[%emt 0:00:11]} 41. Kd4 {[%emt 0:
00:00]} Kd6 {[%emt 0:06:53]} 42. c5+ {[%emt 0:00:00]} Kc7 {[%emt 0:02:08]} 43.
c6 {[%emt 0:00:00]} Kd6 {[%emt 0:00:54]} 44. Kc3 {[%emt 0:00:00]} Nxc6 {
[%emt 0:02:53]} 45. bxc6 {[%emt 0:00:00]} Kxc6 {[%emt 0:00:04]} 46. Kc4 {
[%emt 0:00:00]} Kd6 {[%emt 0:04:34]} 47. Kd4 {[%emt 0:00:00]} Kc6 {[%emt 0:00:
00]} 48. Nb4+ {[%emt 0:00:00]} Kd6 {[%emt 0:01:12]} 49. f5 {[%emt 0:00:00]} b5
{[%emt 0:01:24]} 50. Nd5 {[%emt 0:00:00]} Kc6 {[%emt 0:01:19]} 51. Nf4 {
[%emt 0:00:00]} b4 {[%emt 0:01:21]} 52. Nh5 {[%emt 0:00:29]} Kb5 {[%emt 0:00:
00]} 53. Kd3 {[%emt 0:01:34]} g6 {[%emt 0:03:32]} 54. Nxf6 {[%emt 0:02:08]}
gxf5 {[%emt 0:01:04]} 55. Nxh7 {[%emt 0:02:19]} fxg4 {[%emt 0:06:00]} 56. hxg4
{[%emt 0:00:01]} Kc5 {[%emt 0:00:36]} 57. Ng5 {[%emt 0:00:26]} Kd5 {[%emt 0:00:
00]} 58. Nxf7 {[%emt 0:00:16]} b3 {[%emt 0:00:11]} 59. g5 {[%emt 0:00:30]} Ke6
{[%emt 0:00:42]} 60. g6 {[%emt 0:00:01]} Kd5 {[%emt 0:00:45]} 1-0

[Event "44th Chess Olympiad Open 2022"]
[Site "Chennai"]
[Date "2022.08.03"]
[Round "6.67"]
[White "Cilia Vincenti, David"]
[Black "Shawabke Ziyad"]
[Result "1/2-1/2"]
[WhiteElo "1904"]
[BlackElo "1786"]
[Annotator "NA RC"]
[PlyCount "118"]
[EventDate "2022.??.??"]
[TimeControl "60"]

1. d4 {[%emt 0:00:03]} Nf6 {[%emt 0:00:10]} 2. Nf3 {[%emt 0:00:10]} d5 {
[%emt 0:00:09]} 3. e3 {[%emt 0:00:14]} c5 {[%emt 0:00:09]} 4. Nbd2 {[%emt 0:00:
00]} cxd4 {[%emt 0:01:27]} 5. exd4 {[%emt 0:00:23]} Bf5 {[%emt 0:00:24]} 6.
Bb5+ {[%emt 0:02:55]} Nbd7 {[%emt 0:10:14]} 7. O-O {[%emt 0:04:14]} a6 {
[%emt 0:03:02]} 8. Be2 {[%emt 0:00:21]} Qc7 {[%emt 0:02:32]} 9. c3 {[%emt 0:00:
00]} e6 {[%emt 0:03:41]} 10. Nh4 {[%emt 0:06:25]} Bd6 {[%emt 0:07:55]} 11. g3 {
[%emt 0:02:37]} Bh3 {[%emt 0:07:10]} 12. Re1 {[%emt 0:01:18]} g5 {[%emt 0:00:
00]} 13. Ng2 {[%emt 0:04:43]} Bxg2 {[%emt 0:06:41]} 14. Kxg2 {[%emt 0:00:13]}
h5 {[%emt 0:00:08]} 15. Nf3 {[%emt 0:02:29]} g4 {[%emt 0:08:23]} 16. Nh4 {
[%emt 0:01:11]} Ne4 {[%emt 0:00:22]} 17. Bd3 {[%emt 0:04:24]} f5 {[%emt 0:00:
00]} 18. Ng6 {[%emt 0:04:39]} Rh7 {[%emt 0:03:23]} 19. Nf4 {[%emt 0:04:42]} Kf7
{[%emt 0:02:28]} 20. c4 {[%emt 0:03:10]} Ndf6 {[%emt 0:02:46]} 21. Qb3 {
[%emt 0:12:00]} Bxf4 {[%emt 0:06:20]} 22. Bxf4 {[%emt 0:00:43]} dxc4 {[%emt 0:
00:00]} 23. Bxc4 {[%emt 0:12:43]} Qc6 {[%emt 0:01:00]} 24. Kg1 {[%emt 0:01:45]}
b5 {[%emt 0:00:45]} 25. Bf1 {[%emt 0:02:37]} Qd5 {[%emt 0:01:10]} 26. Qxd5 {
[%emt 0:10:51]} Nxd5 {[%emt 0:00:03]} 27. Be5 {[%emt 0:00:37]} Nef6 {[%emt 0:
00:00]} 28. Rec1 {[%emt 0:02:17]} Nd7 {[%emt 0:00:26]} 29. Bd6 {[%emt 0:01:08]}
Rhh8 {[%emt 0:00:58]} 30. Rc6 {[%emt 0:00:33]} Rhc8 {[%emt 0:00:25]} 31. Rac1 {
[%emt 0:00:35]} N7b6 {[%emt 0:00:10]} 32. Bc7 {[%emt 0:03:37]} Ke7 {[%emt 0:00:
00]} 33. Bxb6 {[%emt 0:02:51]} Nxb6 {[%emt 0:00:04]} 34. Bg2 {[%emt 0:00:54]}
Kd7 {[%emt 0:01:35]} 35. b3 {[%emt 0:01:14]} Nd5 {[%emt 0:01:00]} 36. Bxd5 {
[%emt 0:01:14]} exd5 {[%emt 0:00:03]} 37. R6c5 {[%emt 0:01:01]} Rxc5 {[%emt 0:
00:00]} 38. Rxc5 {[%emt 0:00:40]} Kd6 {[%emt 0:00:24]} 39. a4 {[%emt 0:00:56]}
b4 {[%emt 0:00:12]} 40. Ra5 {[%emt 0:00:43]} Ra7 {[%emt 0:02:26]} 41. Kf1 {
[%emt 0:01:33]} Ra8 {[%emt 0:06:02]} 42. Ke2 {[%emt 0:00:38]} Re8+ {[%emt 0:00:
00]} 43. Kd3 {[%emt 0:03:57]} Ra8 {[%emt 0:01:54]} 44. Ke3 {[%emt 0:01:09]}
Re8+ {[%emt 0:00:51]} 45. Kf4 {[%emt 0:01:17]} Re4+ {[%emt 0:00:10]} 46. Kxf5 {
[%emt 0:00:23]} Rxd4 {[%emt 0:00:13]} 47. Rxa6+ {[%emt 0:00:07]} Kc7 {[%emt 0:
00:00]} 48. Ra5 {[%emt 0:05:35]} Rd3 {[%emt 0:07:49]} 49. Kg5 {[%emt 0:00:20]}
Kc6 {[%emt 0:00:08]} 50. Kxh5 {[%emt 0:02:01]} Rxb3 {[%emt 0:02:29]} 51. Kxg4 {
[%emt 0:00:27]} Ra3 {[%emt 0:08:04]} 52. Kf5 {[%emt 0:04:29]} Rf3+ {[%emt 0:00:
00]} 53. Ke5 {[%emt 0:00:28]} Rxf2 {[%emt 0:00:08]} 54. Rb5 {[%emt 0:03:31]}
Rxh2 {[%emt 0:01:27]} 55. Rxb4 {[%emt 0:00:09]} Kc5 {[%emt 0:01:36]} 56. Rb8 {
[%emt 0:02:30]} Re2+ {[%emt 0:00:15]} 57. Kf5 {[%emt 0:00:34]} Rf2+ {[%emt 0:
00:00]} 58. Ke5 {[%emt 0:03:38]} Re2+ {[%emt 0:00:51]} 59. Kf5 {[%emt 0:00:26]}
Rf2+ {[%emt 0:00:11]} 1/2-1/2